[Event "Titled Tuesday Blitz October 31 Early 2023"]
[White "Baches Garcia, Guillermo"]
[Black "campochess"]
[WhiteFideId "2209764"]
[WhiteElo "2504"]
[BlackElo "2181"]
[Result "1-0"]
[Round "6"]
[TimeControl "180+1"]
[Date "2023.10.31"]
[WhiteClock "0:02:01"]
[BlackClock "0:02:03"]
[Board "164"]

1. d4 {[%clk 0:03:00]}  Nf6 {[%clk 0:02:58]} 2. Nf3 {[%clk 0:03:01]}  g6 {[%clk 0:02:58]} 3. Bg5 {[%clk 0:03:01]}  Bg7 {[%clk 0:02:58]} 4. Nbd2 {[%clk 0:03:02]}  d5 {[%clk 0:02:57]} 5. e3 {[%clk 0:03:01]}  c6 {[%clk 0:02:57]} 6. Be2 {[%clk 0:03:00]}  O-O {[%clk 0:02:56]} 7. O-O {[%clk 0:03:00]}  Nbd7 {[%clk 0:02:54]} 8. c3 {[%clk 0:02:59]}  Re8 {[%clk 0:02:53]} 9. Bh4 {[%clk 0:02:51]}  Nf8 {[%clk 0:02:51]} 10. Ne5 {[%clk 0:02:49]}  Ne6 {[%clk 0:02:41]} 11. f4 {[%clk 0:02:46]}  Nc7 {[%clk 0:02:34]} 12. Bd3 {[%clk 0:02:42]}  Ng4 {[%clk 0:02:24]} 13. Nxg4 {[%clk 0:02:39]}  f6 {[%clk 0:02:17]} 14. b4 {[%clk 0:02:35]}  Qd6 {[%clk 0:02:14]} 15. a4 {[%clk 0:02:32]}  e5 {[%clk 0:02:14]} 16. fxe5 {[%clk 0:02:29]}  fxe5 {[%clk 0:02:13]} 17. Nf6+ {[%clk 0:02:24]}  Bxf6 {[%clk 0:02:11]} 18. Rxf6 {[%clk 0:02:23]}  Qd7 {[%clk 0:02:11]} 19. Bxg6 {[%clk 0:02:18]}  Qg7 {[%clk 0:02:05]} 20. Bxe8 {[%clk 0:02:01]}  Nxe8 {[%clk 0:02:03]} 1-0


[Site "https://www.chess.com"]

[Event "Titled Tuesday Blitz October 31 Early 2023"]
[White "chess_blitz00"]
[Black "Floresvillar Gonzalez, Luis Migu"]
[BlackFideId "5100542"]
[WhiteElo "2446"]
[BlackElo "2168"]
[Result "1-0"]
[Round "6"]
[TimeControl "180+1"]
[Date "2023.10.31"]
[WhiteClock "0:00:13"]
[BlackClock "0:00:19"]
[Board "166"]

1. d4 {[%clk 0:02:57]}  Nf6 {[%clk 0:02:57]} 2. c4 {[%clk 0:02:57]}  e5 {[%clk 0:02:56]} 3. dxe5 {[%clk 0:02:57]}  Ng4 {[%clk 0:02:56]} 4. Nf3 {[%clk 0:02:53]}  Bc5 {[%clk 0:02:56]} 5. e3 {[%clk 0:02:50]}  Nc6 {[%clk 0:02:56]} 6. Qd5 {[%clk 0:02:46]}  Qe7 {[%clk 0:02:55]} 7. Nc3 {[%clk 0:02:34]}  O-O {[%clk 0:02:50]} 8. Nb5 {[%clk 0:02:27]}  Nb4 {[%clk 0:02:31]} 9. Qd1 {[%clk 0:02:21]}  c6 {[%clk 0:02:21]} 10. Nc7 {[%clk 0:02:17]}  Rb8 {[%clk 0:02:20]} 11. a3 {[%clk 0:02:18]}  Na6 {[%clk 0:02:18]} 12. Nxa6 {[%clk 0:02:16]}  bxa6 {[%clk 0:02:18]} 13. b4 {[%clk 0:02:16]}  Bb6 {[%clk 0:02:15]} 14. c5 {[%clk 0:02:02]}  Bc7 {[%clk 0:02:14]} 15. Bb2 {[%clk 0:02:01]}  Nxe5 {[%clk 0:02:14]} 16. Nxe5 {[%clk 0:01:37]}  Bxe5 {[%clk 0:02:13]} 17. Bxe5 {[%clk 0:01:37]}  Qxe5 {[%clk 0:02:13]} 18. Qd4 {[%clk 0:01:34]}  Qg5 {[%clk 0:02:02]} 19. h4 {[%clk 0:01:21]}  Qe7 {[%clk 0:01:54]} 20. Bc4 {[%clk 0:00:58]}  a5 {[%clk 0:01:53]} 21. h5 {[%clk 0:00:39]}  h6 {[%clk 0:01:49]} 22. Rh3 {[%clk 0:00:33]}  axb4 {[%clk 0:01:49]} 23. Rg3 {[%clk 0:00:32]}  g5 {[%clk 0:01:00]} 24. hxg6 {[%clk 0:00:27]}  d5 {[%clk 0:00:47]} 25. cxd6 {[%clk 0:00:21]}  Qg5 {[%clk 0:00:32]} 26. gxf7+ {[%clk 0:00:20]}  Kh7 {[%clk 0:00:30]} 27. Rxg5 {[%clk 0:00:19]}  hxg5 {[%clk 0:00:31]} 28. Qe4+ {[%clk 0:00:20]}  Kg7 {[%clk 0:00:27]} 29. Qe5+ {[%clk 0:00:20]}  Kg6 {[%clk 0:00:26]} 30. Bd3+ {[%clk 0:00:18]}  Kh5 {[%clk 0:00:19]} 31. Kd2 {[%clk 0:00:13]} 1-0


[Site "https://www.chess.com"]

[Event "Titled Tuesday Blitz October 31 Early 2023"]
[White "Prieto Aranguren, Alain"]
[Black "kingapolak"]
[WhiteFideId "2268906"]
[WhiteElo "2397"]
[BlackElo "2158"]
[Result "1-0"]
[Round "6"]
[TimeControl "180+1"]
[Date "2023.10.31"]
[WhiteClock "0:00:45"]
[BlackClock "0:00:00"]
[Board "167"]

1. e4 {[%clk 0:03:00]}  c5 {[%clk 0:02:59]} 2. Nc3 {[%clk 0:02:58]}  Nc6 {[%clk 0:02:58]} 3. g3 {[%clk 0:02:59]}  g6 {[%clk 0:02:57]} 4. Bg2 {[%clk 0:02:59]}  Bg7 {[%clk 0:02:58]} 5. d3 {[%clk 0:03:00]}  e6 {[%clk 0:02:54]} 6. Be3 {[%clk 0:02:59]}  d6 {[%clk 0:02:53]} 7. Nge2 {[%clk 0:02:57]}  Nge7 {[%clk 0:02:53]} 8. d4 {[%clk 0:02:56]}  cxd4 {[%clk 0:02:53]} 9. Nxd4 {[%clk 0:02:57]}  O-O {[%clk 0:02:53]} 10. O-O {[%clk 0:02:52]}  a6 {[%clk 0:02:52]} 11. Qd2 {[%clk 0:02:47]}  Qc7 {[%clk 0:02:46]} 12. Rfd1 {[%clk 0:02:42]}  Rd8 {[%clk 0:02:43]} 13. Na4 {[%clk 0:02:31]}  b5 {[%clk 0:02:04]} 14. Nxc6 {[%clk 0:02:29]}  Qxc6 {[%clk 0:02:02]} 15. Nb6 {[%clk 0:01:41]}  Rb8 {[%clk 0:02:00]} 16. Nxc8 {[%clk 0:01:38]}  Rbxc8 {[%clk 0:02:01]} 17. c3 {[%clk 0:01:37]}  d5 {[%clk 0:01:53]} 18. Bg5 {[%clk 0:01:30]}  f6 {[%clk 0:01:43]} 19. exd5 {[%clk 0:01:28]}  Nxd5 {[%clk 0:01:43]} 20. Be3 {[%clk 0:01:25]}  Qc7 {[%clk 0:01:37]} 21. Qe2 {[%clk 0:01:22]}  Nxe3 {[%clk 0:01:30]} 22. Qxe3 {[%clk 0:01:20]}  e5 {[%clk 0:01:18]} 23. h4 {[%clk 0:01:18]}  f5 {[%clk 0:01:13]} 24. h5 {[%clk 0:01:14]}  e4 {[%clk 0:00:29]} 25. Qg5 {[%clk 0:01:09]}  Kf7 {[%clk 0:00:15]} 26. hxg6+ {[%clk 0:01:02]}  hxg6 {[%clk 0:00:15]} 27. Bf1 {[%clk 0:00:56]}  Bf6 {[%clk 0:00:14]} 28. Qe3 {[%clk 0:00:54]}  Rh8 {[%clk 0:00:14]} 29. c4 {[%clk 0:00:53]}  b4 {[%clk 0:00:09]} 30. c5 {[%clk 0:00:46]}  Qxc5 {[%clk 0:00:08]} 31. Rd7+ {[%clk 0:00:46]}  Kf8 {[%clk 0:00:00]} 32. Qb3 {[%clk 0:00:45]} 1-0


[Site "https://www.chess.com"]

[Event "Titled Tuesday Blitz October 31 Early 2023"]
[White "Fernandez Hernandez, Gerardo"]
[Black "Stanojevic, Ilija"]
[WhiteFideId "2207400"]
[BlackFideId "959995"]
[WhiteElo "2145"]
[BlackElo "2393"]
[Result "1-0"]
[Round "6"]
[TimeControl "180+1"]
[Date "2023.10.31"]
[WhiteClock "0:00:57"]
[BlackClock "0:00:56"]
[Board "168"]

1. e4 {[%clk 0:03:00]}  d6 {[%clk 0:02:54]} 2. d4 {[%clk 0:03:00]}  Nf6 {[%clk 0:02:54]} 3. Nc3 {[%clk 0:03:00]}  Nbd7 {[%clk 0:02:53]} 4. g4 {[%clk 0:02:55]}  h6 {[%clk 0:02:52]} 5. h3 {[%clk 0:02:55]}  e5 {[%clk 0:02:52]} 6. Be3 {[%clk 0:02:54]}  c6 {[%clk 0:02:50]} 7. Nge2 {[%clk 0:02:51]}  b5 {[%clk 0:02:47]} 8. Ng3 {[%clk 0:02:51]}  b4 {[%clk 0:02:41]} 9. Nce2 {[%clk 0:02:48]}  d5 {[%clk 0:02:34]} 10. Bg2 {[%clk 0:02:35]}  exd4 {[%clk 0:02:12]} 11. Nxd4 {[%clk 0:02:32]}  Bb7 {[%clk 0:01:43]} 12. O-O {[%clk 0:02:04]}  c5 {[%clk 0:01:43]} 13. Ndf5 {[%clk 0:02:04]}  g6 {[%clk 0:01:38]} 14. exd5 {[%clk 0:02:00]}  gxf5 {[%clk 0:01:36]} 15. Nxf5 {[%clk 0:01:54]}  Qb6 {[%clk 0:01:27]} 16. Re1 {[%clk 0:01:36]}  O-O-O {[%clk 0:01:27]} 17. a3 {[%clk 0:01:29]}  Ne5 {[%clk 0:01:07]} 18. axb4 {[%clk 0:01:22]}  Nc4 {[%clk 0:00:58]} 19. bxc5 {[%clk 0:01:04]}  Bxc5 {[%clk 0:00:59]} 20. Bd4 {[%clk 0:01:00]}  Bf8 {[%clk 0:01:00]} 21. Bxb6 {[%clk 0:00:58]}  Bc5 {[%clk 0:00:56]} 22. Bxc5 {[%clk 0:00:57]} 1-0


[Site "https://www.chess.com"]

[Event "Titled Tuesday Blitz October 31 Early 2023"]
[White "Bocangel Chavez, Marjoire J."]
[Black "Simonovic, Miroslav"]
[WhiteFideId "3810500"]
[BlackFideId "919152"]
[WhiteElo "1859"]
[BlackElo "2299"]
[Result "1-0"]
[Round "6"]
[TimeControl "180+1"]
[Date "2023.10.31"]
[WhiteClock "0:00:24"]
[BlackClock "0:00:00"]
[Board "174"]

1. e4 {[%clk 0:03:00]}  c5 {[%clk 0:03:00]} 2. Nc3 {[%clk 0:02:59]}  Nc6 {[%clk 0:03:00]} 3. Bb5 {[%clk 0:02:58]}  g6 {[%clk 0:03:00]} 4. Bxc6 {[%clk 0:02:58]}  dxc6 {[%clk 0:03:01]} 5. f4 {[%clk 0:02:57]}  Bg7 {[%clk 0:03:01]} 6. Nf3 {[%clk 0:02:57]}  e5 {[%clk 0:03:01]} 7. d3 {[%clk 0:02:56]}  exf4 {[%clk 0:02:59]} 8. Bxf4 {[%clk 0:02:55]}  Ne7 {[%clk 0:02:59]} 9. O-O {[%clk 0:02:53]}  O-O {[%clk 0:02:59]} 10. Bg5 {[%clk 0:02:42]}  h6 {[%clk 0:02:56]} 11. Bh4 {[%clk 0:02:42]}  Qc7 {[%clk 0:02:39]} 12. Bg3 {[%clk 0:02:05]}  Qd7 {[%clk 0:02:36]} 13. Qe1 {[%clk 0:01:50]}  Kh7 {[%clk 0:02:35]} 14. Kh1 {[%clk 0:01:42]}  b6 {[%clk 0:02:32]} 15. Be5 {[%clk 0:01:41]}  Qe6 {[%clk 0:02:25]} 16. Bxg7 {[%clk 0:01:37]}  Kxg7 {[%clk 0:02:26]} 17. Qh4 {[%clk 0:01:33]}  f5 {[%clk 0:02:25]} 18. Rae1 {[%clk 0:01:29]}  f4 {[%clk 0:02:25]} 19. Ne2 {[%clk 0:01:22]}  g5 {[%clk 0:02:25]} 20. Nxg5 {[%clk 0:01:21]}  hxg5 {[%clk 0:02:25]} 21. Qxg5+ {[%clk 0:01:21]}  Ng6 {[%clk 0:02:25]} 22. Nxf4 {[%clk 0:01:03]}  Qg4 {[%clk 0:02:25]} 23. Nh5+ {[%clk 0:00:50]}  Kh7 {[%clk 0:01:51]} 24. Nf6+ {[%clk 0:00:49]}  Rxf6 {[%clk 0:01:51]} 25. Qxf6 {[%clk 0:00:49]}  Qe6 {[%clk 0:01:42]} 26. Qg5 {[%clk 0:00:48]}  Kg7 {[%clk 0:01:33]} 27. e5 {[%clk 0:00:47]}  Qg4 {[%clk 0:01:29]} 28. Qf6+ {[%clk 0:00:45]}  Kh7 {[%clk 0:01:29]} 29. e6 {[%clk 0:00:41]}  Bxe6 {[%clk 0:01:08]} 30. Rxe6 {[%clk 0:00:39]}  Rf8 {[%clk 0:01:08]} 31. Re7+ {[%clk 0:00:34]}  Kh6 {[%clk 0:00:34]} 32. Qg7+ {[%clk 0:00:33]}  Kh5 {[%clk 0:00:27]} 33. Qh7+ {[%clk 0:00:31]}  Kg5 {[%clk 0:00:27]} 34. Ree1 {[%clk 0:00:30]}  Rh8 {[%clk 0:00:12]} 35. Re5+ {[%clk 0:00:29]}  Nxe5 {[%clk 0:00:06]} 36. Qxh8 {[%clk 0:00:29]}  Qe2 {[%clk 0:00:06]} 37. Qf6+ {[%clk 0:00:28]}  Kh5 {[%clk 0:00:05]} 38. h3 {[%clk 0:00:27]}  Ng6 {[%clk 0:00:03]} 39. Rf5+ {[%clk 0:00:25]}  Kh6 {[%clk 0:00:03]} 40. Qg5+ {[%clk 0:00:25]}  Kg7 {[%clk 0:00:03]} 41. Rf6 {[%clk 0:00:24]}  Qe1+ {[%clk 0:00:00]} 42. Kh2 {[%clk 0:00:24]} 1-0


[Site "https://www.chess.com"]

[Event "Titled Tuesday Blitz October 31 Early 2023"]
[White "So, Wesley"]
[Black "Galchenko, Matvey"]
[WhiteFideId "5202213"]
[BlackFideId "24175480"]
[WhiteElo "3100"]
[BlackElo "2932"]
[Result "1-0"]
[Round "7"]
[TimeControl "180+1"]
[Date "2023.10.31"]
[WhiteClock "0:00:15"]
[BlackClock "0:00:25"]
[Board "3"]

1. b3 {[%clk 0:02:54]}  e5 {[%clk 0:02:57]} 2. Bb2 {[%clk 0:02:54]}  Nc6 {[%clk 0:02:58]} 3. e3 {[%clk 0:02:55]}  d5 {[%clk 0:02:58]} 4. Bb5 {[%clk 0:02:54]}  Ne7 {[%clk 0:02:58]} 5. Bxe5 {[%clk 0:02:53]}  a6 {[%clk 0:02:58]} 6. Bxc6+ {[%clk 0:02:53]}  Nxc6 {[%clk 0:02:59]} 7. Bg3 {[%clk 0:02:53]}  h5 {[%clk 0:02:54]} 8. h4 {[%clk 0:02:53]}  d4 {[%clk 0:02:53]} 9. Ne2 {[%clk 0:02:47]}  Bf5 {[%clk 0:02:25]} 10. Nxd4 {[%clk 0:02:26]}  Nxd4 {[%clk 0:02:25]} 11. exd4 {[%clk 0:02:26]}  Qxd4 {[%clk 0:02:25]} 12. Qe2+ {[%clk 0:02:25]}  Be6 {[%clk 0:02:08]} 13. Qe5 {[%clk 0:02:10]}  Qb6 {[%clk 0:01:49]} 14. Qxc7 {[%clk 0:02:03]}  Qxc7 {[%clk 0:01:35]} 15. Bxc7 {[%clk 0:02:04]}  Rc8 {[%clk 0:01:33]} 16. Be5 {[%clk 0:01:45]}  Rxc2 {[%clk 0:01:32]} 17. Nc3 {[%clk 0:01:46]}  Ba3 {[%clk 0:01:06]} 18. Kd1 {[%clk 0:01:40]}  Bf5 {[%clk 0:01:06]} 19. Bxg7 {[%clk 0:01:31]}  Rg8 {[%clk 0:01:06]} 20. Re1+ {[%clk 0:01:31]}  Kd7 {[%clk 0:01:06]} 21. Re5 {[%clk 0:01:19]}  Bh7 {[%clk 0:00:49]} 22. Rxh5 {[%clk 0:01:06]}  Bg6 {[%clk 0:00:41]} 23. Rd5+ {[%clk 0:01:06]}  Kc6 {[%clk 0:00:38]} 24. Rg5 {[%clk 0:01:05]}  Rxg7 {[%clk 0:00:36]} 25. Rxg6+ {[%clk 0:01:00]}  Rxg6 {[%clk 0:00:36]} 26. Kxc2 {[%clk 0:01:01]}  Rxg2 {[%clk 0:00:36]} 27. Rh1 {[%clk 0:00:54]}  Bf8 {[%clk 0:00:34]} 28. h5 {[%clk 0:00:50]}  Bh6 {[%clk 0:00:34]} 29. Nd1 {[%clk 0:00:50]}  Kd6 {[%clk 0:00:20]} 30. Kd3 {[%clk 0:00:46]}  Ke5 {[%clk 0:00:20]} 31. Ne3 {[%clk 0:00:44]}  Rg8 {[%clk 0:00:20]} 32. Rh4 {[%clk 0:00:41]}  Rd8+ {[%clk 0:00:20]} 33. Ke2 {[%clk 0:00:41]}  b5 {[%clk 0:00:19]} 34. Ng4+ {[%clk 0:00:40]}  Kf4 {[%clk 0:00:14]} 35. Nxh6+ {[%clk 0:00:41]}  Kg5 {[%clk 0:00:15]} 36. Nxf7+ {[%clk 0:00:11]}  Kxh4 {[%clk 0:00:15]} 37. Nxd8 {[%clk 0:00:12]}  Kxh5 {[%clk 0:00:16]} 38. Nc6 {[%clk 0:00:10]}  Kg6 {[%clk 0:00:16]} 39. b4 {[%clk 0:00:10]}  a5 {[%clk 0:00:17]} 40. bxa5 {[%clk 0:00:09]}  b4 {[%clk 0:00:18]} 41. a6 {[%clk 0:00:10]}  b3 {[%clk 0:00:19]} 42. axb3 {[%clk 0:00:10]}  Kf5 {[%clk 0:00:19]} 43. a7 {[%clk 0:00:11]}  Ke6 {[%clk 0:00:20]} 44. a8=Q {[%clk 0:00:12]}  Kd6 {[%clk 0:00:21]} 45. b4 {[%clk 0:00:12]}  Kd5 {[%clk 0:00:21]} 46. b5 {[%clk 0:00:13]}  Kc4 {[%clk 0:00:22]} 47. b6 {[%clk 0:00:13]}  Kc5 {[%clk 0:00:23]} 48. Qb7 {[%clk 0:00:13]}  Kd5 {[%clk 0:00:24]} 49. d4 {[%clk 0:00:13]}  Ke6 {[%clk 0:00:25]} 50. Kd3 {[%clk 0:00:13]}  Kf5 {[%clk 0:00:26]} 51. Ne5 {[%clk 0:00:13]}  Kf6 {[%clk 0:00:26]} 52. Qd5 {[%clk 0:00:13]}  Kg5 {[%clk 0:00:26]} 53. b7 {[%clk 0:00:14]}  Kf4 {[%clk 0:00:25]} 54. b8=Q {[%clk 0:00:15]} 1-0


[Site "https://www.chess.com"]

[Event "Titled Tuesday Blitz October 31 Early 2023"]
[White "Svane, Frederik"]
[Black "Nakamura, Hikaru"]
[WhiteFideId "12923044"]
[BlackFideId "2016192"]
[WhiteElo "2876"]
[BlackElo "3228"]
[Result "0-1"]
[Round "7"]
[TimeControl "180+1"]
[Date "2023.10.31"]
[WhiteClock "0:00:05"]
[BlackClock "0:00:25"]
[Board "5"]

1. c4 {[%clk 0:02:56]}  e5 {[%clk 0:02:58]} 2. d3 {[%clk 0:02:56]}  Nc6 {[%clk 0:02:52]} 3. Nc3 {[%clk 0:02:53]}  Bb4 {[%clk 0:02:44]} 4. Bd2 {[%clk 0:02:52]}  Nge7 {[%clk 0:02:42]} 5. g3 {[%clk 0:02:51]}  h5 {[%clk 0:02:39]} 6. Nf3 {[%clk 0:02:49]}  d6 {[%clk 0:02:30]} 7. Bg2 {[%clk 0:02:49]}  f6 {[%clk 0:02:31]} 8. a3 {[%clk 0:02:43]}  Bxc3 {[%clk 0:02:31]} 9. Bxc3 {[%clk 0:02:44]}  Be6 {[%clk 0:02:31]} 10. e4 {[%clk 0:02:41]}  Qd7 {[%clk 0:02:28]} 11. h3 {[%clk 0:02:38]}  O-O-O {[%clk 0:02:23]} 12. b4 {[%clk 0:02:30]}  Rdf8 {[%clk 0:02:18]} 13. b5 {[%clk 0:02:15]}  Nd8 {[%clk 0:02:18]} 14. Qe2 {[%clk 0:02:14]}  Kb8 {[%clk 0:02:09]} 15. a4 {[%clk 0:02:12]}  Bf7 {[%clk 0:02:07]} 16. a5 {[%clk 0:02:09]}  g5 {[%clk 0:02:06]} 17. h4 {[%clk 0:01:59]}  Ne6 {[%clk 0:02:04]} 18. Qe3 {[%clk 0:01:47]}  Rhg8 {[%clk 0:02:00]} 19. Nd2 {[%clk 0:01:22]}  Qc8 {[%clk 0:01:45]} 20. Nb3 {[%clk 0:01:11]}  f5 {[%clk 0:01:13]} 21. exf5 {[%clk 0:00:48]}  Nxf5 {[%clk 0:01:13]} 22. Qe4 {[%clk 0:00:49]}  Nfd4 {[%clk 0:01:14]} 23. Bxd4 {[%clk 0:00:27]}  exd4 {[%clk 0:01:14]} 24. a6 {[%clk 0:00:20]}  Bg6 {[%clk 0:00:53]} 25. axb7 {[%clk 0:00:17]}  Qe8 {[%clk 0:00:50]} 26. Qc6 {[%clk 0:00:14]}  Nc5+ {[%clk 0:00:37]} 27. Kd1 {[%clk 0:00:14]}  Qxc6 {[%clk 0:00:35]} 28. bxc6 {[%clk 0:00:05]}  Nxb3 {[%clk 0:00:35]} 29. Ra3 {[%clk 0:00:03]}  Rxf2 {[%clk 0:00:33]} 30. Rxb3 {[%clk 0:00:01]}  Rxg2 {[%clk 0:00:33]} 31. Ra3 {[%clk 0:00:02]}  Be8 {[%clk 0:00:28]} 32. Ra6 {[%clk 0:00:01]}  gxh4 {[%clk 0:00:25]} 33. gxh4 {[%clk 0:00:02]}  Rg1+ {[%clk 0:00:25]} 34. Rxg1 {[%clk 0:00:02]}  Rxg1+ {[%clk 0:00:25]} 35. Ke2 {[%clk 0:00:03]}  Rb1 {[%clk 0:00:26]} 36. Ra5 {[%clk 0:00:03]}  Bxc6 {[%clk 0:00:26]} 37. Rxh5 {[%clk 0:00:04]}  Kxb7 {[%clk 0:00:26]} 38. Rh8 {[%clk 0:00:04]}  a5 {[%clk 0:00:25]} 39. h5 {[%clk 0:00:05]} 0-1


[Site "https://www.chess.com"]

[Event "Titled Tuesday Blitz October 31 Early 2023"]
[White "Le, Tuan Minh"]
[Black "Ashraf, Artin"]
[WhiteFideId "12401153"]
[BlackFideId "22514805"]
[WhiteElo "2980"]
[BlackElo "2845"]
[Result "1-0"]
[Round "7"]
[TimeControl "180+1"]
[Date "2023.10.31"]
[WhiteClock "0:00:09"]
[BlackClock "0:00:00"]
[Board "6"]

1. d4 {[%clk 0:03:00]}  Nf6 {[%clk 0:02:40]} 2. Nf3 {[%clk 0:03:01]}  d5 {[%clk 0:02:38]} 3. Bf4 {[%clk 0:03:01]}  Bf5 {[%clk 0:02:35]} 4. c4 {[%clk 0:03:01]}  e6 {[%clk 0:02:35]} 5. Nc3 {[%clk 0:03:01]}  Nbd7 {[%clk 0:02:35]} 6. e3 {[%clk 0:03:01]}  c6 {[%clk 0:02:34]} 7. Qb3 {[%clk 0:03:02]}  Qc8 {[%clk 0:02:33]} 8. Rc1 {[%clk 0:03:00]}  Be7 {[%clk 0:02:32]} 9. h3 {[%clk 0:03:00]}  h6 {[%clk 0:02:31]} 10. Be2 {[%clk 0:03:01]}  O-O {[%clk 0:02:31]} 11. O-O {[%clk 0:03:01]}  a6 {[%clk 0:02:25]} 12. cxd5 {[%clk 0:02:54]}  exd5 {[%clk 0:02:24]} 13. Rfd1 {[%clk 0:02:49]}  Re8 {[%clk 0:02:22]} 14. Ne5 {[%clk 0:02:47]}  Ra7 {[%clk 0:02:19]} 15. Bf3 {[%clk 0:02:14]}  Qd8 {[%clk 0:02:16]} 16. e4 {[%clk 0:02:14]}  Be6 {[%clk 0:01:55]} 17. exd5 {[%clk 0:02:14]}  cxd5 {[%clk 0:01:46]} 18. Nxd7 {[%clk 0:02:10]}  Qxd7 {[%clk 0:01:43]} 19. Na4 {[%clk 0:02:09]}  Qb5 {[%clk 0:01:38]} 20. Nc5 {[%clk 0:02:02]}  Qxb3 {[%clk 0:01:36]} 21. axb3 {[%clk 0:02:01]}  Bf5 {[%clk 0:01:32]} 22. Re1 {[%clk 0:01:48]}  Kf8 {[%clk 0:01:29]} 23. g4 {[%clk 0:01:43]}  Bc8 {[%clk 0:01:23]} 24. Bb8 {[%clk 0:01:33]}  Ra8 {[%clk 0:01:22]} 25. Bc7 {[%clk 0:01:34]}  Bxc5 {[%clk 0:01:08]} 26. dxc5 {[%clk 0:01:35]}  Rxe1+ {[%clk 0:01:06]} 27. Rxe1 {[%clk 0:01:36]}  Be6 {[%clk 0:01:07]} 28. b4 {[%clk 0:01:36]}  Ke8 {[%clk 0:01:06]} 29. Be5 {[%clk 0:01:33]}  Kd7 {[%clk 0:01:06]} 30. Bd4 {[%clk 0:01:20]}  Kc6 {[%clk 0:01:04]} 31. Be2 {[%clk 0:01:21]}  Re8 {[%clk 0:01:00]} 32. Bd3 {[%clk 0:01:19]}  Bd7 {[%clk 0:00:59]} 33. Rxe8 {[%clk 0:01:12]}  Nxe8 {[%clk 0:00:58]} 34. f3 {[%clk 0:01:08]}  f6 {[%clk 0:00:54]} 35. Kf2 {[%clk 0:01:04]}  Nc7 {[%clk 0:00:54]} 36. Be3 {[%clk 0:00:53]}  Ne6 {[%clk 0:00:52]} 37. f4 {[%clk 0:00:50]}  Kc7 {[%clk 0:00:51]} 38. f5 {[%clk 0:00:46]}  Ng5 {[%clk 0:00:49]} 39. h4 {[%clk 0:00:46]}  Nf7 {[%clk 0:00:49]} 40. Bd4 {[%clk 0:00:42]}  Bb5 {[%clk 0:00:48]} 41. Bc2 {[%clk 0:00:33]}  Kc6 {[%clk 0:00:47]} 42. Kg3 {[%clk 0:00:33]}  Be2 {[%clk 0:00:42]} 43. Ba4+ {[%clk 0:00:32]}  Bb5 {[%clk 0:00:41]} 44. Bd1 {[%clk 0:00:32]}  Bd3 {[%clk 0:00:39]} 45. Kf4 {[%clk 0:00:21]}  Kb5 {[%clk 0:00:38]} 46. Bf3 {[%clk 0:00:21]}  Bc4 {[%clk 0:00:30]} 47. Bc3 {[%clk 0:00:22]}  Kc6 {[%clk 0:00:28]} 48. Bg2 {[%clk 0:00:20]}  Be2 {[%clk 0:00:27]} 49. Bd4 {[%clk 0:00:17]}  Bd1 {[%clk 0:00:26]} 50. Bf1 {[%clk 0:00:15]}  Kd7 {[%clk 0:00:23]} 51. b5 {[%clk 0:00:15]}  axb5 {[%clk 0:00:21]} 52. Bxb5+ {[%clk 0:00:16]}  Kc7 {[%clk 0:00:18]} 53. b4 {[%clk 0:00:17]}  Bb3 {[%clk 0:00:13]} 54. Be8 {[%clk 0:00:17]}  Nd8 {[%clk 0:00:13]} 55. b5 {[%clk 0:00:17]}  Bc2 {[%clk 0:00:04]} 56. g5 {[%clk 0:00:18]}  hxg5+ {[%clk 0:00:04]} 57. hxg5 {[%clk 0:00:19]}  fxg5+ {[%clk 0:00:05]} 58. Kxg5 {[%clk 0:00:20]}  g6 {[%clk 0:00:03]} 59. Bxg6 {[%clk 0:00:19]}  Kd7 {[%clk 0:00:03]} 60. Bh5 {[%clk 0:00:16]}  Bd3 {[%clk 0:00:03]} 61. b6 {[%clk 0:00:14]}  Nc6 {[%clk 0:00:03]} 62. Bb2 {[%clk 0:00:12]}  Be4 {[%clk 0:00:03]} 63. f6 {[%clk 0:00:12]}  d4 {[%clk 0:00:03]} 64. Kh6 {[%clk 0:00:08]}  Ke6 {[%clk 0:00:01]} 65. f7 {[%clk 0:00:08]}  Ke7 {[%clk 0:00:00]} 66. Kg7 {[%clk 0:00:09]} 1-0


[Site "https://www.chess.com"]

[Event "Titled Tuesday Blitz October 31 Early 2023"]
[White "Madaminov, Mukhiddin"]
[Black "Sjugirov, Sanan"]
[WhiteFideId "14210703"]
[BlackFideId "4189302"]
[WhiteElo "2856"]
[BlackElo "2959"]
[Result "1-0"]
[Round "7"]
[TimeControl "180+1"]
[Date "2023.10.31"]
[WhiteClock "0:00:03"]
[BlackClock "0:00:00"]
[Board "7"]

1. e4 {[%clk 0:02:54]}  c6 {[%clk 0:02:59]} 2. Nf3 {[%clk 0:02:54]}  d5 {[%clk 0:03:00]} 3. Nc3 {[%clk 0:02:55]}  Bg4 {[%clk 0:03:00]} 4. h3 {[%clk 0:02:55]}  Bxf3 {[%clk 0:03:00]} 5. Qxf3 {[%clk 0:02:56]}  e6 {[%clk 0:03:01]} 6. Be2 {[%clk 0:02:57]}  Bc5 {[%clk 0:02:48]} 7. O-O {[%clk 0:02:56]}  Ne7 {[%clk 0:02:47]} 8. exd5 {[%clk 0:02:42]}  cxd5 {[%clk 0:02:43]} 9. Na4 {[%clk 0:02:40]}  Bd6 {[%clk 0:02:40]} 10. d4 {[%clk 0:02:41]}  Ng6 {[%clk 0:02:27]} 11. c4 {[%clk 0:02:37]}  Nc6 {[%clk 0:02:20]} 12. Rd1 {[%clk 0:02:07]}  dxc4 {[%clk 0:02:14]} 13. d5 {[%clk 0:01:32]}  Nce5 {[%clk 0:01:31]} 14. Qe4 {[%clk 0:01:30]}  O-O {[%clk 0:01:07]} 15. f4 {[%clk 0:01:11]}  Nd3 {[%clk 0:01:00]} 16. Bxd3 {[%clk 0:00:53]}  exd5 {[%clk 0:00:57]} 17. Qxd5 {[%clk 0:00:26]}  cxd3 {[%clk 0:00:53]} 18. Qxd3 {[%clk 0:00:17]}  Bxf4 {[%clk 0:00:46]} 19. Bxf4 {[%clk 0:00:17]}  Nxf4 {[%clk 0:00:34]} 20. Qxd8 {[%clk 0:00:09]}  Rfxd8 {[%clk 0:00:32]} 21. Nc5 {[%clk 0:00:10]}  b6 {[%clk 0:00:29]} 22. Nb7 {[%clk 0:00:10]}  Rxd1+ {[%clk 0:00:15]} 23. Rxd1 {[%clk 0:00:11]}  Ne6 {[%clk 0:00:14]} 24. Rd7 {[%clk 0:00:04]}  Rc8 {[%clk 0:00:14]} 25. Nd6 {[%clk 0:00:03]}  Rc7 {[%clk 0:00:14]} 26. Rxc7 {[%clk 0:00:02]}  Nxc7 {[%clk 0:00:11]} 27. Nc8 {[%clk 0:00:03]}  Nb5 {[%clk 0:00:01]} 28. a4 {[%clk 0:00:03]}  Nd4 {[%clk 0:00:00]} 29. Nxa7 {[%clk 0:00:03]} 1-0


[Site "https://www.chess.com"]